bitfinex-derivatives/quotes_ETHF0:USTF0_20260115
["timestamp","ask_amount","ask_price","bid_price","bid_amount"]
[1768454222889,0.55704043,3313.4,3311.9,1.79052819]
[1768454223095,0.15093,3313.6,3312.0,0.57392707]
[1768454223692,0.70797043,3313.6,3312.0,0.57392707]
[1768454223894,0.71031556,3313.6,3312.0,0.57392707]
[1768454225802,0.55704043,3313.5,3311.6,0.57392707]
[1768454226000,0.55704043,3313.5,3311.7,1.219]
[1768454226199,0.55704043,3313.4,3311.6,0.57392707]
[1768454226497,0.55704043,3313.4,3311.7,1.219]
[1768454227497,0.55704043,3313.4,3312.0,1.21660112]
[1768454227803,0.70798043,3313.4,3312.0,1.21660112]
[1768454228000,0.15094,3313.4,3312.0,1.21660112]
[1768454230100,0.15094,3313.4,3312.4,1.21660112]
[1768454230295,0.00234513,3313.6,3312.4,1.21660112]
[1768454230598,0.00234513,3313.6,3312.1,0.57392707]
[1768454231110,0.15092,3314.0,3312.4,1.21660112]
[1768454231303,0.83650408,3313.9,3312.4,1.21660112]
[1768454231503,0.15092,3314.0,3312.4,1.79052819]
[1768454232009,0.15361803,3314.0,3312.5,0.57392707]
[1768454232207,0.15361803,3314.0,3312.6,1.79292707]
[1768454232410,0.15361803,3314.0,3313.0,0.00453275]
[1768454233495,0.55704043,3313.9,3313.0,0.00453275]
[1768454233809,0.55704043,3313.7,3313.0,0.00453275]
[1768454234004,0.55704043,3313.7,3312.1,1.18]
[1768454234609,0.55704043,3313.7,3312.1,1.219]
[1768454234809,0.55704043,3313.3,3311.5,1.219]
[1768454235012,0.00453275,3312.7,3312.1,0.00453275]
[1768454236921,0.55704043,3313.3,3312.1,0.00453275]
[1768454239014,0.55704043,3313.1,3312.1,0.00453275]
[1768454240913,0.70800043,3313.1,3312.1,0.00453275]
[1768454241114,0.61689646,3312.9,3311.4,1.219]
[1768454241318,0.61689646,3312.7,3311.4,1.219]
[1768454242221,0.00453275,3312.4,3311.7,0.00453275]
[1768454243413,0.00453275,3312.4,3311.1,3.02238165]
[1768454243414,0.58170112,3312.4,3311.1,3.02238165]
[1768454244326,0.58170112,3312.4,3311.4,0.00453275]
[1768454246618,0.58170112,3312.4,3311.1,0.00238165]
[1768454247626,0.58170112,3312.4,3311.4,0.00453275]
[1768454248331,0.00453275,3312.4,3311.4,1.22113387]
[1768454251637,0.00453275,3312.4,3311.4,0.00453275]
[1768454251833,0.73269112,3312.4,3311.4,0.00453275]
[1768454252739,0.57716837,3312.1,3311.1,0.00238165]
[1768454253839,0.57716837,3312.1,3311.3,0.00453275]
[1768454255236,0.57716837,3312.1,3311.1,0.00238165]
[1768454256443,0.57716837,3312.0,3311.1,0.00238165]
[1768454257539,0.57716837,3312.0,3311.2,0.00302182]
[1768454257744,0.151,3312.1,3311.2,0.00302182]
[1768454261555,1.79395163,3312.0,3311.2,0.00302182]
[1768454263148,0.57716837,3312.0,3311.2,0.00302182]
[1768454263957,0.151,3312.1,3311.5,1.21678326]
[1768454264253,0.151,3312.1,3311.2,0.00302182]
[1768454265054,0.151,3312.1,3311.2,1.21980508]
[1768454266750,0.151,3312.1,3311.2,0.00302182]
[1768454267351,0.57716837,3311.9,3310.8,1.21678326]
[1768454267562,1.36778326,3312.1,3310.8,1.21678326]
[1768454267770,1.94495163,3312.1,3310.3,0.60424085]
[1768454267964,0.57716837,3312.0,3310.7,1.21678326]
[1768454268262,0.57716837,3312.0,3310.7,1.22028177]
[1768454270266,0.57716837,3312.0,3310.9,1.21678326]
[1768454273067,0.151,3312.1,3311.1,1.21678326]
[1768454273265,0.151,3312.1,3311.3,1.21678326]
[1768454273466,0.151,3312.1,3311.5,1.21678326]
[1768454273864,0.151,3312.1,3311.3,1.21678326]
[1768454274275,0.151,3312.1,3311.0,1.21678326]
[1768454279263,0.151,3312.1,3311.2,1.21678326]
[1768454280570,0.00453275,3312.4,3311.6,1.21678326]
[1768454280775,0.00453275,3312.4,3311.8,1.21678326]
[1768454281869,0.00453275,3312.4,3310.9,2.69120103]
[1768454282076,1.21678326,3312.3,3311.0,1.21678326]
[1768454282374,1.21678326,3312.3,3310.7,0.74417124]
[1768454282375,0.00453275,3312.4,3311.1,1.21678326]
[1768454282774,0.00453275,3312.4,3311.3,1.21678326]
[1768454283478,0.00453275,3312.4,3311.5,1.21678326]
[1768454285079,0.00453275,3312.4,3311.1,1.21678326]
[1768454285473,1.21678326,3312.3,3310.9,1.21678326]
[1768454287577,0.00453275,3312.4,3311.3,1.21678326]
[1768454287779,0.00453275,3312.4,3311.5,1.21678326]
[1768454290572,0.15096,3313.1,3312.2,1.21678326]
[1768454290771,0.83613374,3313.0,3311.8,1.21678326]
[1768454291081,0.83613374,3312.9,3311.8,1.21678326]
[1768454291265,0.15096,3313.1,3311.8,1.21678326]
[1768454291466,0.83592828,3313.0,3311.8,1.21678326]
[1768454291666,0.00453275,3312.8,3312.1,0.00453275]
[1768454296281,0.00453275,3312.8,3312.2,1.21678326]
[1768454296583,0.61017328,3313.7,3312.6,1.21678326]
[1768454296787,0.15093,3313.8,3312.1,0.00453275]
[1768454296788,2.66229967,3313.6,3312.2,1.21678326]
[1768454296988,1.21678326,3313.4,3312.1,0.00453275]
[1768454297288,0.83534313,3313.3,3312.1,0.00453275]
[1768454297487,0.00453275,3313.0,3312.1,0.00453275]
[1768454301983,1.22131601,3313.0,3312.1,0.00453275]
[1768454302385,1.37227601,3313.0,3312.1,0.00453275]
[1768454302591,0.15549275,3313.0,3312.1,0.00453275]
[1768454304583,0.00453275,3313.0,3312.4,1.21678326]
[1768454304783,0.00453275,3313.0,3312.2,1.21678326]
[1768454305591,0.00453275,3313.0,3312.4,1.21678326]
[1768454305793,0.00453275,3313.0,3312.2,1.21678326]
[1768454314198,0.15094,3313.4,3312.4,1.21678326]
[1768454315290,0.00453275,3313.2,3312.1,0.58129299]
[1768454315493,0.00453275,3313.2,3312.1,1.79807625]
[1768454315900,0.00453275,3313.2,3312.1,0.00453275]
[1768454316096,1.21678326,3313.1,3312.1,0.00453275]
[1768454316290,0.00453275,3313.2,3312.1,0.00453275]
[1768454319798,0.61461498,3313.2,3312.1,0.00453275]
[1768454319999,0.83575631,3313.1,3312.1,0.00453275]
[1768454320207,1.98235824,3313.2,3312.1,0.00453275]
[1768454320500,1.44613062,3313.1,3312.1,0.00453275]
[1768454320694,0.83604839,3313.0,3312.1,0.00453275]
[1768454320894,0.98700839,3313.0,3312.1,0.00453275]
[1768454321102,0.61008223,3313.1,3312.1,0.00453275]
[1768454322290,0.00453275,3313.2,3312.2,1.21678326]
[1768454322709,0.15094,3313.6,3312.8,1.21678326]
[1768454323008,0.00269803,3314.0,3312.8,1.21678326]
[1768454323207,0.83605217,3313.9,3312.8,1.21678326]
[1768454323392,0.00269803,3314.0,3312.4,0.57676024]
[1768454323797,0.00453275,3313.5,3312.4,0.57676024]
[1768454324298,0.00269803,3314.0,3312.4,0.57676024]
[1768454324497,0.00269803,3314.0,3312.7,0.57676024]
[1768454325202,0.00269803,3314.0,3312.3,0.57676024]
[1768454325399,0.00453275,3313.5,3312.3,0.57676024]
[1768454325601,0.00453275,3313.5,3312.3,1.79376024]
[1768454329813,0.00453275,3313.5,3312.3,1.217]
[1768454333211,0.57897346,3313.5,3312.3,1.217]
[1768454341920,0.72991346,3313.5,3312.3,1.217]
[1768454348233,0.15094,3313.4,3312.3,1.217]
[1768454357635,0.15095,3313.3,3312.3,1.217]
[1768454362342,0.83386709,3313.2,3312.3,1.217]
[1768454362538,0.15095,3313.3,3312.3,1.217]
[1768454362739,0.83386707,3313.2,3312.3,1.217]
[1768454363041,0.15095,3313.3,3312.3,1.217]
[1768454363346,0.83387118,3313.2,3312.1,0.00453275]
[1768454363546,0.15095,3313.3,3312.1,0.00453275]
[1768454363841,0.83410914,3313.2,3312.1,0.00453275]
[1768454364042,0.15095,3313.3,3312.1,0.00453275]
[1768454364245,0.83410904,3313.2,3312.1,0.00453275]
[1768454364542,0.15095,3313.3,3312.1,0.00453275]
[1768454364736,0.83410905,3313.2,3312.1,0.00453275]
[1768454364930,0.15095,3313.3,3312.1,0.00453275]
[1768454365128,0.83410905,3313.2,3312.1,0.00453275]
[1768454365332,0.15095,3313.3,3312.1,0.00453275]
[1768454365628,0.83410856,3313.2,3312.1,0.00453275]
[1768454365831,0.15095,3313.3,3312.1,0.00453275]
[1768454366034,0.83410856,3313.2,3312.1,0.00453275]
[1768454366238,0.15095,3313.3,3312.1,0.00453275]
[1768454366440,0.83410824,3313.2,3312.1,0.00453275]
[1768454366640,0.15095,3313.3,3312.1,0.00453275]
[1768454366842,0.83410823,3313.2,3312.1,0.00453275]
[1768454367043,0.15095,3313.3,3312.1,0.00453275]
[1768454367245,0.83410835,3313.2,3312.1,0.00453275]
[1768454367446,0.15095,3313.3,3312.1,0.00453275]
[1768454367745,0.83410835,3313.2,3312.1,0.00453275]
[1768454367942,0.15095,3313.3,3312.1,0.00453275]
[1768454368142,0.83410819,3313.2,3312.1,0.00453275]
[1768454368344,0.15095,3313.3,3312.1,0.00453275]
[1768454368547,0.8341087,3313.2,3312.1,0.00453275]
[1768454368748,0.15095,3313.3,3312.1,0.00453275]
[1768454368950,0.8341087,3313.2,3312.1,0.00453275]
[1768454369148,0.15095,3313.3,3312.1,0.00453275]
[1768454369452,0.8341093,3313.2,3312.1,0.00453275]
[1768454369644,0.15095,3313.3,3312.1,0.00453275]
[1768454369845,0.83411019,3313.2,3312.1,0.00453275]
[1768454370048,0.15095,3313.3,3312.1,0.00453275]
[1768454370249,0.83411062,3313.2,3312.1,0.00453275]
[1768454370448,0.15095,3313.3,3312.1,0.00453275]
[1768454370649,0.83411078,3313.2,3312.1,0.00453275]
[1768454370844,0.15095,3313.3,3312.1,0.00453275]
[1768454371045,0.83411062,3313.2,3312.1,0.00453275]
[1768454371341,0.15095,3313.3,3312.1,0.00453275]
[1768454371551,0.83411224,3313.2,3312.1,0.00453275]
[1768454371756,0.15095,3313.3,3312.1,0.00453275]
[1768454371950,0.83411192,3313.2,3312.1,0.00453275]
[1768454372248,0.15095,3313.3,3312.1,0.00453275]
[1768454372454,0.8341126,3313.2,3312.1,0.00453275]
[1768454372654,0.15095,3313.3,3312.1,0.00453275]
[1768454372853,0.8341126,3313.2,3312.1,0.00453275]
[1768454373056,0.15095,3313.3,3312.1,0.00453275]
[1768454373256,0.83411258,3313.2,3312.1,0.00453275]
[1768454373553,0.15095,3313.3,3312.1,0.00453275]
[1768454373756,0.83411243,3313.2,3312.1,0.00453275]
[1768454374056,0.15095,3313.3,3312.1,0.00453275]
[1768454374236,0.83411397,3313.2,3312.1,0.00453275]
[1768454374441,0.15095,3313.3,3312.1,0.00453275]
[1768454374643,0.83408527,3313.2,3312.1,0.00453275]
[1768454374844,0.15095,3313.3,3312.1,0.00453275]
[1768454375145,0.83408495,3313.2,3312.1,0.00453275]
[1768454375349,0.15095,3313.3,3312.1,0.00453275]
[1768454375648,0.83408511,3313.2,3312.1,0.00453275]
[1768454375953,0.00453275,3313.5,3312.5,1.78709107]
[1768454376155,0.00453275,3313.5,3312.5,0.5717392]
[1768454376859,0.00269803,3314.0,3313.0,1.21535187]
[1768454377148,0.00269803,3314.0,3312.7,0.5717392]
[1768454377942,0.00302182,3313.7,3312.7,0.5717392]
[1768454381055,0.00302182,3313.7,3312.3,0.5717392]
[1768454381360,0.00302182,3313.7,3312.6,1.217]
[1768454382053,0.15088,3314.8,3313.6,1.21535187]
[1768454382254,0.15088,3314.8,3313.7,1.217]
[1768454383046,0.15088,3314.8,3313.9,0.00452583]
[1768454383255,0.15411414,3314.8,3313.9,0.00452583]
[1768454385760,0.00323414,3314.8,3313.9,1.21915132]
[1768454386458,0.00323414,3314.8,3313.9,0.00452583]
[1768454391158,1.21785963,3314.8,3313.9,0.00452583]
[1768454391359,1.81275605,3314.8,3313.9,0.00452583]
[1768454391760,1.80952191,3314.6,3313.9,0.00452583]
[1768454391966,0.59489642,3314.4,3313.7,0.0037159]
[1768454392269,0.59489642,3314.4,3313.7,0.00031046]
[1768454392662,0.15089,3314.6,3313.7,0.00031046]
[1768454393074,0.15089,3314.6,3313.8,0.00452583]
[1768454395671,0.00450281,3314.5,3313.8,0.00452583]
[1768454401774,0.00450281,3314.5,3313.7,0.00031046]
[1768454402764,0.00450281,3314.5,3313.8,0.00452583]
[1768454408678,1.21462549,3314.1,3313.7,0.00031046]
[1768454408980,1.21462549,3314.3,3312.9,1.216]
[1768454409677,1.21462549,3314.3,3312.9,2.43062549]
[1768454409884,1.21462549,3314.3,3313.3,0.00452583]
[1768454410085,0.74579642,3314.4,3313.3,0.00452583]
[1768454410380,2.03687403,3314.3,3313.3,0.00452583]
[1768454410585,1.21462549,3314.3,3313.3,0.00452583]
[1768454411985,1.36552549,3314.3,3313.3,0.00452583]
[1768454414085,0.59489642,3314.1,3313.3,0.00452583]
[1768454414284,1.21462549,3313.4,3312.2,0.61591819]
[1768454414477,1.21462549,3313.4,3312.2,1.216]
[1768454414777,1.21462549,3313.4,3311.8,0.61591819]
[1768454414982,1.21462549,3313.4,3311.9,1.216]
[1768454415175,1.21462549,3313.4,3311.9,2.43062549]
[1768454415376,1.21462549,3313.4,3312.3,0.00452583]
[1768454416387,1.80952191,3313.4,3312.3,0.00452583]
[1768454420686,0.59489642,3313.4,3312.3,0.00452583]
[1768454422183,0.59489642,3313.4,3312.4,1.21462549]
[1768454423389,0.59395978,3313.8,3312.6,1.21462549]
[1768454423588,0.15091,3314.2,3312.3,0.00452583]
[1768454423589,0.15091,3314.2,3313.5,1.21462549]
[1768454423795,0.15091,3314.2,3313.1,1.21462549]
[1768454431002,0.15091,3314.2,3312.9,1.21462549]
[1768454431200,0.74486978,3314.2,3312.3,0.60894402]
[1768454431389,0.74486978,3314.2,3312.8,1.21462549]
[1768454433509,0.59395978,3314.1,3312.8,1.21462549]
[1768454433803,1.21462549,3313.7,3312.4,2.43062549]
[1768454434005,1.21462549,3313.5,3312.3,0.00452583]
[1768454434209,1.80858527,3313.5,3312.3,0.00452583]
[1768454434405,0.59395978,3313.4,3312.3,0.00452583]
[1768454435411,0.59395978,3313.4,3312.3,1.21915132]
[1768454438509,0.59395978,3313.4,3312.3,0.00452583]
[1768454440911,1.95952527,3313.4,3312.3,0.00452583]
[1768454445219,0.59395978,3312.4,3310.9,2.69120103]
[1768454445409,0.59395978,3312.4,3310.9,1.82041819]
[1768454445613,0.59395978,3312.4,3310.9,3.0370359]
[1768454445814,1.21661771,3312.9,3310.9,3.0370359]
[1768454446014,0.59395978,3312.7,3311.0,0.60441819]
[1768454446212,0.00452583,3312.2,3311.5,0.00452583]
[1768454456943,0.0034707,3312.7,3312.0,1.21661771]
[1768454457238,0.15095,3313.2,3312.0,0.55042051]
[1768454457939,0.00452583,3312.9,3312.0,0.55042051]
[1768454458142,0.0076978,3312.9,3312.0,0.55042051]
[1768454462240,0.0076978,3312.9,3312.0,1.76703822]
[1768454462434,0.58114074,3313.5,3312.0,1.76703822]
[1768454462642,0.73206074,3313.9,3312.1,0.55042051]
[1768454462842,0.82107554,3313.8,3312.1,0.55042051]
[1768454463039,0.82107554,3313.7,3312.1,0.55042051]
[1768454463343,0.73206074,3313.9,3312.4,1.21661771]
[1768454463543,0.00452583,3313.5,3312.4,1.21661771]
[1768454468048,0.00452583,3313.5,3312.5,0.55042051]
[1768454468349,0.00216571,3313.9,3312.9,0.55042051]
[1768454469342,0.00452583,3313.7,3312.9,0.55042051]
[1768454469543,0.00216571,3313.9,3312.9,0.55042051]
[1768454470549,0.00450281,3313.7,3312.9,0.55042051]
[1768454472147,0.73203074,3314.6,3312.9,0.55042051]
[1768454473154,0.73449335,3314.6,3313.4,0.00452583]
[1768454473356,0.73449335,3314.6,3313.4,0.00793611]
[1768454475469,0.73203074,3314.5,3313.4,0.00793611]
[1768454475662,0.58114074,3314.4,3313.4,0.00793611]
[1768454479675,0.58114074,3314.3,3313.4,0.00793611]
[1768454479866,0.58114074,3314.2,3312.8,1.215]
[1768454480773,0.00452582,3313.8,3313.2,0.00452583]
[1768454481471,0.55006124,3313.8,3312.8,0.00342746]
[1768454482474,0.55006124,3313.8,3313.0,0.00452583]
[1768454483573,0.70099124,3313.8,3313.0,0.00452583]
[1768454483772,0.70099124,3313.8,3312.8,0.00342746]
[1768454483773,0.52798569,3313.7,3312.8,0.00342746]
[1768454484462,0.52798569,3313.5,3311.6,1.75080927]
[1768454484772,0.52798569,3313.5,3312.3,0.00452583]
[1768454485074,0.52798569,3313.4,3312.3,0.00452583]
[1768454485574,0.52798569,3313.4,3312.3,0.00801716]
[1768454486869,0.15094,3313.5,3312.3,0.00801716]
[1768454487972,0.15094,3313.5,3312.4,1.21661771]
[1768454493679,0.15094,3313.5,3312.3,0.00801716]
[1768454503584,0.15094,3313.5,3312.3,1.22301716]
[1768454503780,0.52798569,3313.4,3312.3,0.00801716]
[1768454503990,0.52798569,3313.4,3312.3,1.22301716]
[1768454504186,0.52798569,3313.4,3312.3,0.00801716]
[1768454507396,0.52798569,3313.4,3312.5,1.2155309]
[1768454510101,0.52798569,3313.4,3312.3,0.00801716]
[1768454510401,0.52798569,3313.4,3312.3,1.22354806]
[1768454513299,1.75344094,3313.0,3312.3,0.00801716]
[1768454514000,0.53791004,3313.0,3312.3,0.00801716]
[1768454516404,0.53791004,3313.0,3312.4,1.2155309]
[1768454516903,0.15095,3313.3,3312.4,1.2155309]
[1768454518600,0.68886004,3313.3,3312.3,0.00801716]
[1768454519899,1.36332202,3313.2,3312.3,0.00801716]
[1768454520098,1.36332202,3313.1,3312.3,0.00801716]
[1768454520294,0.53791004,3312.9,3311.4,2.83422375]
[1768454520494,0.53791004,3312.7,3311.4,1.215]
[1768454520699,0.53791004,3312.6,3311.4,1.215]
[1768454520904,0.53791004,3312.6,3311.5,1.2155309]
[1768454521093,0.53791004,3312.6,3311.4,1.215]
[1768454521404,0.53791004,3312.6,3311.7,0.00452583]
[1768454522599,0.53791004,3312.5,3311.7,0.00452583]
[1768454522812,0.53791004,3312.4,3311.4,0.00302318]
[1768454523105,1.75344094,3312.3,3311.4,0.00302318]
[1768454523498,0.53791004,3312.0,3310.5,4.2355309]
[1768454523694,0.53791004,3312.0,3310.8,1.2155309]
[1768454523999,0.00452583,3311.6,3310.9,0.00452583]
[1768454524202,0.00452583,3311.6,3310.9,1.22005673]
[1768454524606,0.00804939,3311.6,3310.9,1.22305706]
[1768454525604,0.15098,3312.7,3311.5,1.2155309]
[1768454525801,0.15098,3312.7,3311.9,1.2155309]
[1768454526107,0.15098,3312.7,3311.7,1.2155309]
[1768454526402,0.15098,3312.6,3311.5,1.2155309]
[1768454526704,0.15098,3312.6,3310.9,0.00752616]
[1768454526705,0.53791004,3312.3,3310.9,0.00752616]
[1768454526897,0.53791004,3312.3,3310.9,1.22352616]
[1768454527098,0.53791004,3312.3,3311.1,1.2155309]
[1768454528104,0.53791004,3312.3,3311.3,1.2155309]
[1768454529608,0.53791004,3312.3,3311.5,1.2155309]
[1768454529812,0.15551583,3312.4,3311.7,1.2155309]
[1768454530004,0.15551583,3312.4,3311.9,1.2155309]
[1768454530907,0.15099,3312.4,3311.9,1.2155309]
[1768454532111,0.53791004,3313.1,3312.3,1.2155309]
[1768454532414,1.90440094,3313.1,3311.8,1.2155309]
[1768454532912,0.53791004,3313.0,3311.8,1.2155309]
[1768454533116,0.54064021,3313.0,3311.8,1.2155309]
[1768454536505,1.90442094,3312.6,3311.1,1.2155309]
[1768454536706,0.68889004,3312.6,3311.3,1.2155309]
[1768454539026,0.53791004,3312.4,3311.0,1.2155309]
[1768454539214,0.15099,3312.5,3311.3,1.2155309]
[1768454539417,0.15099,3312.5,3311.5,1.2155309]
[1768454540324,0.15099,3312.5,3311.0,1.74901284]
[1768454540522,0.15099,3312.5,3311.4,1.2155309]
[1768454542316,0.15099,3312.5,3311.6,1.2155309]
[1768454542514,0.15099,3312.5,3311.5,1.2155309]
[1768454545428,0.15099,3312.5,3311.3,1.2155309]
[1768454545924,0.66193571,3312.5,3310.9,0.00752616]
[1768454546232,0.66194571,3312.2,3310.9,1.22305706]
[1768454547834,0.66194571,3312.2,3311.1,1.2155309]
[1768454550026,0.66194571,3312.2,3310.9,1.22305706]
[1768454553930,0.66194571,3312.2,3310.9,0.00752616]
[1768454554530,0.66194571,3312.2,3310.9,1.22305706]
[1768454555241,0.66194571,3312.2,3310.9,0.00752616]
[1768454561434,0.66194571,3312.2,3311.0,1.2155309]
[1768454561735,0.66194571,3312.2,3310.9,0.00752616]
[1768454561936,0.66194571,3312.2,3311.1,1.2155309]
[1768454564542,0.00452583,3312.0,3311.1,1.2155309]
[1768454564934,0.00452583,3312.0,3310.9,1.22305706]
[1768454567544,0.00452583,3312.0,3310.9,0.00752616]
[1768454569045,0.00452583,3312.0,3310.9,1.74754973]
[1768454569249,0.15097,3312.8,3311.3,1.2166782]
[1768454569433,0.82784187,3312.7,3311.3,1.2166782]
[1768454569635,0.15097,3312.8,3311.3,1.74002357]
[1768454569836,0.82782648,3312.7,3311.3,1.74002357]
[1768454570144,0.15097,3312.8,3311.3,1.74002357]
[1768454570344,0.82778266,3312.7,3311.3,1.74002357]
[1768454570541,0.15097,3312.8,3311.3,0.52334537]
[1768454570748,0.82778289,3312.7,3311.3,0.52334537]
[1768454570947,0.15097,3312.8,3311.3,0.52334537]
[1768454571246,0.82778304,3312.7,3311.3,0.52334537]
[1768454571438,0.15097,3312.8,3311.3,0.52334537]
[1768454571639,0.8277396,3312.7,3311.3,0.52334537]
[1768454571839,0.15097,3312.8,3311.3,0.52334537]
[1768454572039,0.8277396,3312.7,3311.3,0.52334537]
[1768454572240,0.15097,3312.8,3311.3,0.52334537]
[1768454572439,0.8276991,3312.7,3311.3,0.52334537]
[1768454572642,0.15097,3312.8,3311.3,0.52334537]
[1768454572940,0.82769901,3312.7,3311.3,0.52334537]
[1768454573138,0.15097,3312.8,3311.3,0.52334537]
[1768454573335,0.82767333,3312.7,3311.3,0.52334537]
[1768454573547,0.15097,3312.8,3311.3,0.52334537]
[1768454573748,0.82767333,3312.7,3311.3,0.52334537]
[1768454573949,0.15097,3312.8,3311.3,0.52334537]
[1768454574149,0.82767333,3312.7,3311.3,0.52334537]
[1768454574350,0.15097,3312.8,3311.3,0.52334537]
[1768454574652,0.8276474,3312.7,3311.3,0.52334537]
[1768454574851,0.15097,3312.8,3311.3,0.52334537]
[1768454575054,0.8276474,3312.7,3311.3,0.52334537]
[1768454575356,0.15097,3312.8,3311.3,0.52334537]
[1768454575552,0.82762203,3312.7,3311.3,0.52334537]
[1768454575850,0.15097,3312.8,3311.3,0.52334537]
[1768454576051,0.82762203,3312.7,3311.3,0.52334537]
[1768454576253,0.15097,3312.8,3311.3,0.52334537]
[1768454576453,0.8275397,3312.7,3311.3,0.52334537]
[1768454576656,0.15097,3312.8,3311.3,0.52334537]
[1768454576853,0.8275397,3312.7,3311.3,0.52334537]
[1768454577055,0.15097,3312.8,3311.3,0.52334537]
[1768454577260,0.8275397,3312.7,3311.3,0.52334537]
[1768454577465,0.15097,3312.8,3311.3,0.52334537]
[1768454577756,0.82747258,3312.7,3311.3,0.52334537]
[1768454577957,0.15097,3312.8,3311.3,0.52334537]
[1768454578162,0.82747258,3312.7,3311.3,0.52334537]
[1768454578456,0.15097,3312.8,3311.3,0.52334537]
[1768454578657,0.15097,3312.8,3311.7,1.73229644]
[1768454578849,0.00273017,3313.0,3311.8,0.51561824]
[1768454582760,0.50611912,3312.8,3311.2,2.69120103]
[1768454582962,0.65709912,3312.7,3311.1,1.215]
[1768454583163,0.8268034,3312.6,3311.1,1.215]
[1768454583466,0.65709912,3312.7,3311.1,1.215]
[1768454583666,0.82678239,3312.6,3311.1,1.215]
[1768454583966,0.65709912,3312.7,3311.1,1.215]
[1768454584163,0.50611912,3312.5,3310.9,0.5231444]
[1768454584463,0.50611912,3312.2,3310.9,0.00752616]
[1768454584768,0.15099,3312.3,3310.9,0.00752616]
[1768454586265,0.65710912,3312.3,3310.9,0.00752616]
[1768454586465,0.50611912,3312.2,3310.9,0.00752616]
[1768454587362,0.65711912,3312.2,3310.9,0.00752616]
[1768454587567,0.50611912,3312.1,3310.9,0.00752616]
[1768454595674,0.65711912,3312.1,3310.9,0.00752616]
[1768454595870,0.50611912,3312.0,3310.9,0.00752616]
[1768454598172,0.50611912,3312.0,3309.9,2.69120103]
[1768454598173,0.50611912,3311.7,3309.9,2.69120103]
[1768454598468,0.50611912,3311.7,3309.8,1.215]
[1768454598869,0.15104,3311.3,3309.8,1.215]
[1768454599275,0.15104,3311.3,3310.2,0.00452583]
[1768454600976,0.00452583,3311.1,3310.2,0.00452583]
[1768454601876,0.53176473,3311.1,3310.2,0.00452583]
[1768454602375,0.68281473,3311.1,3310.2,0.00452583]
[1768454603177,0.52448312,3311.0,3310.2,0.00452583]
[1768454604073,0.67553312,3311.0,3310.2,1e-08]
[1768454604279,0.52448312,3310.9,3309.8,0.00305277]
[1768454605273,0.52448312,3310.9,3310.0,0.00452583]
[1768454606372,0.67554312,3310.9,3310.0,0.00452583]
[1768454606573,0.52448312,3310.8,3309.8,0.00305277]
[1768454607176,0.52448312,3310.5,3308.8,0.50501054]
[1768454607781,0.52448312,3310.5,3309.3,0.00452583]
[1768454608276,0.52766798,3310.5,3309.3,0.00782888]
[1768454608579,0.67874798,3310.5,3309.3,0.00782888]
[1768454614207,0.00318486,3310.5,3309.3,0.51283942]
[1768454618702,0.00318486,3310.5,3309.3,0.00782888]
[1768454619109,0.52766798,3310.5,3309.3,0.00782888]
[1768454621608,0.00318486,3310.5,3309.3,0.00782888]
[1768454624009,0.00318486,3310.5,3309.4,1.2166782]
[1768454626116,0.00318486,3310.5,3309.3,0.51283942]
[1768454627305,0.00318486,3310.5,3309.7,1.21755087]
[1768454632213,0.15557583,3311.1,3310.1,1.21755087]
[1768454632410,0.82991587,3311.0,3310.1,1.21755087]
[1768454632711,0.82991587,3310.9,3309.9,1.21755087]
[1768454632918,0.15557583,3311.1,3309.9,1.21755087]
[1768454633219,0.82991392,3311.0,3309.9,1.21755087]
[1768454633420,0.82991392,3310.9,3309.9,1.21755087]
[1768454633920,0.00332211,3311.0,3310.2,1.21755087]
[1768454636117,0.00332211,3311.0,3310.4,1.21755087]
[1768454636318,0.67226105,3311.7,3310.8,1.21755087]
[1768454636520,0.82981815,3311.6,3310.8,1.21755087]
[1768454636722,0.82981815,3311.5,3310.6,1.21755087]
[1768454636921,0.67226105,3311.7,3310.6,1.21755087]
[1768454637222,0.82978064,3311.6,3310.6,1.21755087]
[1768454637412,0.67464127,3311.7,3310.6,1.21755087]
[1768454637618,0.8293741,3311.6,3310.6,1.21755087]
[1768454637819,0.67464127,3311.7,3310.6,1.21755087]
[1768454638019,0.00452583,3311.4,3310.6,1.21755087]
[1768454638821,0.00452583,3311.4,3310.8,1.21755087]
[1768454639217,0.00452583,3311.4,3310.6,1.21755087]
[1768454642826,0.00452583,3311.4,3310.4,1.21755087]
[1768454644532,0.00452583,3311.4,3310.5,1.21755087]
[1768454654138,0.00452583,3311.4,3310.3,1.21755087]
[1768454660343,0.00452583,3311.4,3310.5,1.21755087]
[1768454663629,0.00452583,3311.4,3310.4,1.21755087]
[1768454672962,0.00452583,3311.4,3311.0,1.21755087]
[1768454673154,0.00238022,3311.7,3311.2,1.21755087]
[1768454673354,0.00238022,3311.7,3310.8,1.21755087]
[1768454673555,0.00238022,3311.7,3310.7,0.52535337]
[1768454674166,0.00238022,3311.7,3310.9,0.00452583]
[1768454675261,1.21755087,3311.6,3310.9,0.00452583]
[1768454676363,1.21755087,3311.2,3310.1,1.215]
[1768454676563,1.76773396,3311.4,3310.1,1.215]
[1768454676759,0.15555583,3311.6,3310.4,1.21755087]
[1768454676964,0.83216021,3311.5,3310.4,1.21755087]
[1768454677167,0.15555583,3311.6,3310.4,1.21755087]
[1768454677368,0.15555583,3311.6,3310.7,0.00452583]
[1768454677369,0.8321441,3311.5,3310.7,0.00452583]
[1768454677566,1.3731067,3311.6,3310.7,0.00452583]
[1768454677870,0.8321447,3311.5,3310.7,0.00452583]
[1768454678056,1.92328979,3311.6,3310.7,0.00452583]
[1768454678256,0.83213033,3311.5,3310.7,0.00452583]
[1768454678459,1.92328979,3311.6,3310.7,0.00452583]
[1768454678658,0.83213017,3311.5,3310.7,0.00452583]
[1768454678858,1.92328979,3311.6,3310.7,0.00452583]
[1768454679058,0.83213017,3311.5,3310.7,0.00452583]
[1768454679259,1.92328979,3311.6,3310.7,0.00452583]
[1768454679458,0.83211694,3311.5,3310.7,0.00452583]
[1768454679674,1.92328979,3311.6,3310.7,0.00452583]
[1768454679876,0.83211693,3311.5,3310.7,0.00452583]
[1768454680166,1.92328979,3311.6,3310.7,0.00452583]
[1768454680361,0.83210487,3311.5,3310.7,0.00452583]
[1768454680557,1.92328979,3311.6,3310.7,0.00452583]
[1768454680757,0.83210487,3311.5,3310.7,0.00452583]
[1768454680968,1.92328979,3311.6,3310.7,0.00452583]
[1768454681169,0.83210487,3311.5,3310.7,0.00452583]
[1768454681354,1.92328979,3311.6,3310.7,0.00452583]
[1768454681557,0.83209376,3311.5,3310.7,0.00452583]
[1768454681765,1.92328979,3311.6,3310.7,0.00452583]
[1768454681964,0.83209376,3311.5,3310.7,0.00452583]
[1768454682164,1.92328979,3311.6,3310.7,0.00452583]
[1768454682357,0.8320834,3311.5,3310.7,0.00452583]
[1768454682564,1.92328979,3311.6,3310.7,0.00452583]